bitfinex-derivatives/quotes_BTCF0:USTF0_20250710
["timestamp","ask_amount","ask_price","bid_price","bid_amount"]
[1752182755802,0.22569401,115960.0,115940.0,0.04659]
[1752182756106,1.16508,115950.0,115940.0,0.172336]
[1752182756503,1.16508,115950.0,115930.0,0.006]
[1752182756709,0.37609401,115960.0,115940.0,0.27676347]
[1752182756904,1.16516,115950.0,115940.0,0.44909947]
[1752182757209,1.16516,115950.0,115940.0,0.59957947]
[1752182757800,1.49314363,115950.0,115940.0,0.15048]
[1752182758010,1.49314363,115950.0,115930.0,0.1493]
[1752182758199,1.79634363,115950.0,115930.0,0.1493]
[1752182758399,0.00399,115940.0,115920.0,0.00172525]
[1752182758604,0.32798363,115930.0,115920.0,0.00172525]
[1752182758809,0.09808825,115940.0,115920.0,0.17406125]
[1752182759110,0.99736,115930.0,115920.0,0.57238872]
[1752182759406,0.99736,115930.0,115920.0,0.79215472]
[1752182759608,0.1528,115950.0,115930.0,0.04659]
[1752182759809,0.22019401,115960.0,115940.0,0.27676347]
[1752182760111,0.22019401,115960.0,115940.0,0.04659]
[1752182760407,1.1652,115950.0,115920.0,0.00172525]
[1752182760610,0.47348363,115940.0,115920.0,0.32507872]
[1752182760813,0.09521698,115950.0,115930.0,0.27676347]
[1752182761111,0.02020244,115970.0,115940.0,0.44909947]
[1752182761406,0.16338149,116000.0,115950.0,0.1465]
[1752182761610,0.002,116010.0,115990.0,0.42921798]
[1752182761812,0.002,116010.0,116000.0,0.42821798]
[1752182762008,0.002,116010.0,116000.0,0.42805798]
[1752182762211,0.06835451,116050.0,116040.0,0.27476347]
[1752182762414,1.17215451,116050.0,116040.0,0.27476347]
[1752182762613,1.17215451,116050.0,116000.0,0.1435]
[1752182762801,1.17215451,116050.0,116010.0,0.04659]
[1752182763108,1.17215451,116050.0,116040.0,0.27276347]
[1752182763307,0.00299,116040.0,115970.0,0.04659]
[1752182763510,0.37414363,115990.0,115960.0,0.00172466]
[1752182763813,1.16516,115980.0,115970.0,0.27276347]
[1752182764013,1.20787247,115980.0,115960.0,0.00172466]
[1752182764315,1.16171247,115980.0,115970.0,0.27276347]
[1752182764512,0.1477,116030.0,115960.0,0.42418066]
[1752182764715,1.16516,116020.0,115960.0,0.00256466]
[1752182765011,0.89236,116020.0,115960.0,0.00172466]
[1752182765207,1.16516,116030.0,116010.0,0.27276347]
[1752182765516,1.16516,116030.0,116020.0,0.19469]
[1752182765712,1.17211451,116030.0,116020.0,0.46745347]
[1752182765907,1.16516,116030.0,116020.0,0.46745347]
[1752182766304,0.002,116050.0,116030.0,0.04659]
[1752182766508,0.002,116050.0,116040.0,0.31735347]
[1752182766705,0.002,116090.0,116040.0,0.27076347]
[1752182767002,0.001,116160.0,116090.0,0.04659]
[1752182767003,0.56789667,116160.0,116090.0,0.04659]
[1752182767204,0.04616,116190.0,116110.0,0.04659]
[1752182767404,0.00895451,116170.0,116160.0,0.2239568]
[1752182767607,2.33923451,116170.0,116160.0,0.2239568]
[1752182767808,0.00695451,116170.0,116160.0,0.2239568]
[1752182768003,0.33008363,116200.0,116170.0,0.04659]
[1752182768206,0.33008363,116200.0,116060.0,0.34012249]
[1752182768207,0.156,116190.0,116060.0,0.34012249]
[1752182768407,0.24208444,116190.0,116160.0,0.04659]
[1752182768611,0.32798363,116180.0,116170.0,0.1773668]
[1752182768915,0.151,116180.0,116170.0,0.2239568]
[1752182769111,0.15795451,116180.0,116170.0,0.2239568]
[1752182769512,0.15795451,116180.0,116160.0,0.04831169]
[1752182769813,0.15795451,116180.0,116160.0,0.22567849]
[1752182770011,0.37567363,116170.0,116120.0,0.00172228]
[1752182770211,0.32798363,116150.0,116120.0,0.04831228]
[1752182770414,1.34348,116140.0,116120.0,0.00172228]
[1752182770715,0.33493814,116130.0,116090.0,0.04659]
[1752182770917,0.151,116120.0,116100.0,0.1773668]
[1752182771209,0.00695451,116130.0,116120.0,0.1773668]
[1752182771411,0.00695451,116130.0,116120.0,0.2289568]
[1752182771620,0.002,116130.0,116120.0,0.6511888]
[1752182771915,0.002,116130.0,116120.0,0.2307968]
[1752182772109,0.002,116130.0,116120.0,0.2229568]
[1752182772516,0.33693814,116130.0,116120.0,0.2229568]
[1752182772711,0.61167224,116130.0,116080.0,0.00172288]
[1752182772906,0.48083814,116130.0,116100.0,0.04659]
[1752182773106,0.48083814,116130.0,116120.0,0.2219568]
[1752182773411,0.48083814,116130.0,116100.0,0.04659]
[1752182773714,0.15285451,116130.0,116120.0,0.1753668]
[1752182773913,0.15285451,116130.0,116120.0,0.2219568]
[1752182774113,0.002,116130.0,116120.0,0.2219568]
[1752182774310,0.46777224,116130.0,116120.0,0.002]
[1752182774518,0.61217224,116130.0,116120.0,0.002]
[1752182774709,0.74554087,116130.0,116090.0,0.1753668]
[1752182774909,0.04769,116110.0,116090.0,0.1753668]
[1752182775114,1.164,116100.0,116090.0,0.1753668]
[1752182775315,1.3084,116100.0,116090.0,0.1753668]
[1752182775617,0.04769,116090.0,116080.0,0.00172288]
[1752182775816,0.47238363,116090.0,116080.0,0.00172288]
[1752182776012,0.19209,116090.0,116080.0,0.00172288]
[1752182776613,0.1444,116090.0,116080.0,0.00172288]
[1752182776812,1.164,116090.0,116080.0,0.22367968]
[1752182777115,0.37767363,116130.0,116090.0,0.04659]
[1752182777314,1.3084,116120.0,116110.0,0.1753668]
[1752182777812,1.3084,116120.0,116080.0,0.00672288]
[1752182778018,0.19919,116110.0,116080.0,0.05331288]
[1752182778316,1.3141,116100.0,116090.0,0.04659]
[1752182778516,1.19192,116120.0,116100.0,0.1753668]
[1752182778818,1.164,116110.0,116100.0,0.04659]
[1752182779015,1.19292,116120.0,116110.0,0.1753668]
[1752182779423,1.34202,116120.0,116110.0,0.1753668]
[1752182780115,1.34202,116120.0,116110.0,0.1763668]
[1752182780422,0.02014571,116130.0,116120.0,0.04659]
[1752182780622,0.02014571,116130.0,116120.0,0.3715568]
[1752182780923,0.01781838,116150.0,116130.0,0.04659]
[1752182781218,0.16779164,116170.0,116140.0,0.50531109]
[1752182781515,0.0021,116200.0,116160.0,0.04659]
[1752182781816,1.16384,116190.0,116180.0,0.04659]
[1752182782019,0.0021,116200.0,116190.0,0.15522109]
[1752182782316,1.16594,116200.0,116190.0,0.20469109]
[1752182783123,1.16594,116200.0,116170.0,0.1496]
[1752182783421,0.1478,116190.0,116170.0,0.19907]
[1752182783611,0.04949,116180.0,116160.0,0.00172169]
[1752182783815,1.45694,116170.0,116160.0,0.00172169]
[1752182784012,1.50643,116170.0,116160.0,0.00172169]
[1752182784323,1.45694,116170.0,116160.0,0.00172169]
[1752182784518,1.45694,116170.0,116160.0,0.15694278]
[1752182784718,1.45694,116170.0,116160.0,0.00172169]
[1752182784917,0.04695,116160.0,116120.0,0.00172228]
[1752182785115,0.32798363,116130.0,116100.0,0.01621133]
[1752182785320,1.16344,116120.0,116110.0,0.04947]
[1752182785724,1.16344,116120.0,116110.0,0.20469109]
[1752182785917,1.16544,116130.0,116120.0,0.04947]
[1752182786118,1.16544,116130.0,116120.0,0.49599109]
[1752182786325,1.16544,116130.0,116120.0,0.49683109]
[1752182786817,0.002,116130.0,116120.0,0.49683109]
[1752182787013,0.01008834,116180.0,116130.0,0.04447]
[1752182787216,0.00339211,116230.0,116200.0,0.14313275]
[1752182787414,0.00339211,116230.0,116220.0,0.14313275]
[1752182787927,0.00339211,116230.0,116160.0,0.01787476]
[1752182788126,0.04949,116220.0,116170.0,0.3048]
[1752182788320,0.1538,116210.0,116200.0,0.001]
[1752182788519,0.07650058,116230.0,116210.0,0.14313275]
[1752182788725,0.1538,116220.0,116200.0,0.001]
[1752182789124,0.1538,116220.0,116210.0,0.19260275]
[1752182789322,0.00639211,116230.0,116220.0,0.04947]
[1752182789517,0.00639211,116230.0,116220.0,0.66948275]
[1752182789827,0.00639211,116230.0,116220.0,0.67032275]
[1752182790630,0.04949,116220.0,116200.0,0.0027211]
[1752182790822,0.01917089,116340.0,116210.0,0.32798363]
[1752182791018,0.002,116360.0,116290.0,0.32798363]
[1752182791222,0.002,116370.0,116330.0,0.32798363]
[1752182791423,0.002,116410.0,116290.0,0.50889404]
[1752182791623,0.002,116410.0,116340.0,0.32798363]
[1752182792127,0.002,116410.0,116350.0,0.5]
[1752182792629,0.6491,116400.0,116360.0,0.00171873]
[1752182792929,0.0041,116390.0,116360.0,0.00171873]
[1752182793228,0.05359,116380.0,116360.0,0.00171873]
[1752182793424,0.1239,116380.0,116360.0,0.00171873]
[1752182794332,0.04949,116390.0,116360.0,0.00171873]
[1752182794520,0.04949,116370.0,116360.0,0.00171873]
[1752182794723,0.04949,116370.0,116320.0,0.00171932]
[1752182794724,0.04949,116360.0,116320.0,0.00171932]
[1752182794919,0.04949,116320.0,116280.0,0.15291991]
[1752182795128,2.37449,116310.0,116280.0,0.15291991]
[1752182795323,2.32548001,116310.0,116280.0,0.15291991]
[1752182795535,0.00048001,116310.0,116290.0,0.0145]
[1752182795729,0.04949,116340.0,116300.0,0.1423]
[1752182796028,0.32798363,116340.0,116300.0,0.1423]
[1752182796234,0.0041,116310.0,116280.0,0.14401991]
[1752182796528,0.0041,116320.0,116280.0,0.14401991]
[1752182796732,1.21153,116360.0,116280.0,0.18491991]
[1752182797023,0.002,116330.0,116280.0,0.18491991]
[1752182797435,0.002,116330.0,116280.0,0.35687991]
[1752182797621,0.002,116330.0,116280.0,0.18547991]
[1752182797827,0.04949,116320.0,116280.0,0.00171991]
[1752182798027,0.1427,116320.0,116280.0,0.00171991]
[1752182798227,0.35389,116320.0,116290.0,0.1832]
[1752182798426,0.0041,116300.0,116280.0,0.00171991]
[1752182798626,0.21119,116290.0,116280.0,0.00171991]
[1752182798831,0.04949,116280.0,116240.0,0.0017205]
[1752182799132,0.1601,116280.0,116240.0,0.0017205]
[1752182799334,0.002,116290.0,116250.0,0.1983]
[1752182799633,0.05559,116290.0,116250.0,0.1983]
[1752182799830,0.21159,116290.0,116250.0,0.1983]
[1752182800026,0.21159,116290.0,116250.0,0.1575]
[1752182800027,0.04949,116280.0,116250.0,0.1575]
[1752182800232,0.04949,116260.0,116240.0,0.0017205]
[1752182800534,0.05359,116250.0,116240.0,0.0017205]
[1752182800728,0.20959,116250.0,116240.0,0.0017205]
[1752182800928,0.04949,116240.0,116200.0,0.0017211]
[1752182801129,0.20959,116230.0,116200.0,0.0017211]
[1752182801322,0.05149,116250.0,116210.0,0.1575]
[1752182801531,0.05559,116250.0,116210.0,0.1575]
[1752182801733,0.002,116250.0,116220.0,0.32798363]
[1752182801937,0.002,116250.0,116230.0,0.203]
[1752182802329,0.002,116250.0,116230.0,0.625056]
[1752182802629,0.002,116250.0,116230.0,0.375616]
[1752182802929,0.002,116290.0,116230.0,0.45356]
[1752182803136,0.002,116290.0,116230.0,0.20356]
[1752182803330,0.04949,116270.0,116230.0,0.20356]
[1752182803533,0.05359,116270.0,116240.0,0.0017205]
[1752182803734,0.04949,116250.0,116240.0,0.0017205]
[1752182803933,0.04949,116240.0,116200.0,0.01793724]
[1752182804129,0.04949,116270.0,116210.0,0.0443]
[1752182804335,0.0041,116260.0,116210.0,0.0443]
[1752182804535,0.1549,116270.0,116210.0,0.0443]
[1752182804834,0.05149,116290.0,116220.0,0.32798363]
[1752182805032,0.04949,116270.0,116230.0,0.0461]
[1752182805332,0.04949,116260.0,116200.0,0.01793724]
[1752182805524,0.04949,116270.0,116200.0,0.34592087]
[1752182805724,0.04949,116270.0,116210.0,0.0461]
[1752182805933,0.04949,116250.0,116210.0,0.0461]
[1752182806236,0.1618,116260.0,116200.0,0.01793724]
[1752182806431,0.04949,116250.0,116200.0,0.34592087]
[1752182806624,0.04949,116260.0,116210.0,0.205]
[1752182806828,0.05359,116260.0,116210.0,0.205]
[1752182807028,0.1483,116250.0,116210.0,0.205]
[1752182807635,0.19779,116250.0,116210.0,0.205]
[1752182807834,0.04949,116240.0,116210.0,0.205]
[1752182808036,0.04949,116220.0,116200.0,0.01793724]
[1752182808233,0.1556,116210.0,116200.0,0.01793724]
[1752182808634,0.1556,116210.0,116200.0,0.19004924]
[1752182808936,0.20509,116210.0,116200.0,0.01793724]
[1752182809235,0.35509,116210.0,116170.0,0.1553]
[1752182809442,0.15604,116210.0,116180.0,0.055]
[1752182809735,0.1556,116210.0,116190.0,0.1553]
[1752182810045,0.20919,116210.0,116190.0,0.1553]
[1752182810335,0.04949,116190.0,116160.0,0.01820507]
[1752182810526,0.04949,116170.0,116160.0,0.01820507]
[1752182810838,0.05359,116170.0,116120.0,0.00172228]
[1752182811035,0.0041,116130.0,116120.0,0.00172228]
[1752182811223,0.04949,116130.0,116120.0,0.00172228]
[1752182811425,0.15,116160.0,116120.0,0.00172228]
[1752182811630,0.05359,116140.0,116120.0,0.00172228]
[1752182811924,0.04558,116130.0,116120.0,0.00172228]
[1752182812330,0.04968,116130.0,116080.0,0.24528075]
[1752182812536,0.04558,116120.0,116080.0,0.24528075]
[1752182812738,0.19558,116120.0,116080.0,0.24528075]
[1752182813037,0.19968,116120.0,116080.0,0.17058075]
[1752182813232,0.19968,116120.0,116080.0,0.24528075]
[1752182813432,0.002,116170.0,116080.0,0.24528075]
[1752182813630,0.15,116140.0,116080.0,0.24528075]
[1752182813830,0.04558,116110.0,116080.0,0.17058075]
[1752182814135,0.04558,116090.0,116080.0,0.01798075]
[1752182814331,0.04968,116090.0,116070.0,0.00172302]
[1752182814527,0.19618,116080.0,116070.0,0.00172302]
[1752182815136,0.0041,116080.0,116070.0,0.00172302]
[1752182815341,0.1465,116120.0,116070.0,0.00172302]
[1752182815528,0.04968,116090.0,116070.0,0.00172302]
[1752182815726,0.04558,116110.0,116070.0,0.00172302]
[1752182816032,0.1506,116100.0,116070.0,0.00172302]
[1752182816238,0.1506,116100.0,116080.0,0.1507]
[1752182816430,0.19208,116100.0,116070.0,0.00172302]
[1752182816636,0.19618,116100.0,116070.0,0.15242302]
[1752182816832,0.19618,116100.0,116070.0,0.00172302]
[1752182816833,0.04558,116090.0,116070.0,0.00172302]
[1752182817032,0.20198,116080.0,116070.0,0.00172302]
[1752182817226,0.1564,116080.0,116060.0,0.01617079]
[1752182817427,0.04968,116070.0,116040.0,0.00172347]
[1752182817638,0.04558,116050.0,116040.0,0.00172347]
[1752182818236,0.04968,116050.0,116040.0,0.00172347]
[1752182818436,0.04968,116050.0,116010.0,0.23730009]
[1752182818637,0.04558,116050.0,116000.0,0.01835571]
[1752182818832,0.04968,116020.0,116000.0,0.01835571]
[1752182819039,0.1523,116010.0,116000.0,0.01835571]
[1752182819241,0.20198,116010.0,116000.0,0.01835571]
[1752182820042,0.002,116050.0,116000.0,0.19076371]
[1752182820337,0.1537,116040.0,116000.0,0.01835571]
[1752182820531,0.04968,116010.0,116000.0,0.01835571]
[1752182821134,0.1565,116030.0,116000.0,0.19076371]
[1752182821439,0.20208,116030.0,116000.0,0.01835571]
[1752182821636,0.1606,116030.0,116000.0,0.17415571]
[1752182821829,0.04758,116050.0,116010.0,0.114]
[1752182822034,0.20208,116040.0,116020.0,0.1558]
[1752182822235,0.04558,116030.0,116000.0,0.01835571]
[1752182822431,0.04758,116050.0,116000.0,0.28815571]
[1752182822633,0.1565,116040.0,116000.0,0.28815571]
[1752182822943,0.20208,116040.0,116000.0,0.28815571]
[1752182823244,0.04558,116030.0,116000.0,0.01835571]
[1752182823439,0.04558,116010.0,116000.0,0.01835571]
[1752182823843,0.1604,116020.0,116000.0,0.19076371]
[1752182824034,0.04558,116010.0,116000.0,0.01835571]
[1752182824338,0.04558,116030.0,116000.0,0.19075571]
[1752182824545,0.04558,116030.0,116010.0,0.2652]
[1752182825040,0.19308,116030.0,116010.0,0.2652]
[1752182825240,0.19308,116030.0,116010.0,0.1512]
[1752182825642,0.04758,116050.0,116010.0,0.1512]
[1752182825842,0.19508,116050.0,116020.0,0.114]
[1752182826142,0.04968,116040.0,116010.0,0.1512]
[1752182826336,0.1528,116030.0,116010.0,0.1512]
[1752182826533,0.20248,116030.0,116010.0,0.1512]
[1752182826841,0.19838,116030.0,116000.0,0.01835571]
[1752182827041,0.002,116050.0,116000.0,0.19074771]
[1752182827340,0.002,116050.0,116000.0,0.01835571]
[1752182827547,0.04968,116010.0,116000.0,0.01835571]
[1752182827734,0.04968,116010.0,115990.0,0.00172421]
[1752182827940,0.21118,116000.0,115990.0,0.00172421]
[1752182828140,0.20708,116000.0,115990.0,0.00172421]
[1752182828541,0.21118,116000.0,115960.0,0.14922466]
[1752182828747,0.04558,115980.0,115960.0,0.14922466]
[1752182829138,0.20708,116000.0,115960.0,0.14922466]
[1752182829339,0.21118,116000.0,115970.0,0.134]
[1752182829741,0.002,116010.0,115970.0,0.134]
[1752182830046,0.002,116010.0,115980.0,0.48228363]
[1752182830251,0.002,116010.0,115990.0,0.134]
[1752182830447,0.002,116010.0,115990.0,0.2883]
[1752182830642,0.002,116010.0,115990.0,0.46071599]
[1752182830840,0.002,116010.0,115990.0,0.28886]
[1752182831038,0.002,116010.0,115990.0,0.2883]
[1752182831552,0.04758,116010.0,115990.0,0.2883]
[1752182831847,0.04558,116040.0,116000.0,0.32798363]
[1752182832045,0.19458,116040.0,116010.0,0.2948]
[1752182832242,0.04558,116030.0,116010.0,0.2948]
[1752182832448,0.04558,116020.0,115980.0,0.32798363]
[1752182832653,0.04558,116020.0,116000.0,0.00172406]
[1752182832849,0.2982,116030.0,116000.0,0.00172406]
[1752182832850,0.149,116010.0,116000.0,0.00172406]
[1752182833061,0.19868,116010.0,115960.0,0.00172466]
[1752182833256,0.04968,115990.0,115960.0,0.16252466]
[1752182833550,0.04558,115980.0,115960.0,0.16252466]
[1752182833947,0.04558,115990.0,115960.0,0.00172466]
[1752182834146,0.19478,115970.0,115960.0,0.00172466]
[1752182834453,0.19888,115970.0,115960.0,0.00172466]
[1752182835853,0.002,116010.0,115960.0,0.00172466]
[1752182836053,0.1588,116000.0,115960.0,0.00172466]
[1752182836242,0.0041,115970.0,115960.0,0.00172466]
[1752182836446,0.04968,115970.0,115960.0,0.00172466]
[1752182836949,0.20978,115970.0,115960.0,0.00172466]
[1752182838353,0.04558,116000.0,115960.0,0.17418866]
[1752182838663,0.04758,116010.0,115970.0,0.1513]
[1752182838850,0.05168,116010.0,115980.0,0.1374]
[1752182839155,0.05168,116010.0,115990.0,0.1513]
[1752182839355,0.1541,116000.0,115990.0,0.1513]
[1752182840151,0.1541,116000.0,115960.0,0.32970829]
[1752182840454,0.1541,116000.0,115970.0,0.1513]
[1752182840455,0.3018,116000.0,115970.0,0.1513]
[1752182840652,0.00044,116000.0,115970.0,0.2887]
[1752182840850,0.04758,116050.0,116000.0,0.001]
[1752182841050,0.1602,116050.0,116010.0,0.2887]
[1752182841351,0.0041,116020.0,115980.0,0.01637284]
[1752182841550,0.0041,116030.0,115980.0,0.16587284]
[1752182841750,0.04558,116020.0,115990.0,0.1374]
[1752182841950,0.1556,116010.0,116000.0,0.15122406]
[1752182842351,0.20731,116010.0,116000.0,0.00172406]
[1752182842552,0.36191,116010.0,116000.0,0.00172406]
[1752182842850,0.1556,116010.0,116000.0,0.00172406]
[1752182843056,0.20321,116010.0,116000.0,0.00172406]
[1752182843250,0.1546,116040.0,116000.0,0.42413206]
[1752182843555,0.36191,116040.0,116010.0,0.2869]
[1752182843745,0.04761,116030.0,116010.0,0.2869]
[1752182843950,0.20731,116020.0,116000.0,0.00172406]
[1752182844149,0.04761,116010.0,116000.0,0.00172406]
[1752182844445,0.04761,116000.0,115980.0,0.01637284]
[1752182844650,0.20731,115990.0,115980.0,0.01637284]
[1752182844859,0.19511,116010.0,115980.0,0.16789284]
[1752182845152,0.05215,116010.0,115980.0,0.16789284]
[1752182845349,0.04761,116030.0,115980.0,0.16617284]
[1752182845655,0.35481,116020.0,115980.0,0.16789284]
[1752182845858,0.0041,116010.0,115980.0,0.16789284]
[1752182846055,0.0041,116010.0,115990.0,0.1373]
[1752182846255,0.002,116010.0,116000.0,0.00172]
[1752182846554,0.002,116010.0,116000.0,0.15152]
[1752182846759,0.002,116010.0,116000.0,0.323928]
[1752182847054,0.0061,116010.0,116000.0,0.1498]
[1752182847456,0.21221,116010.0,116000.0,0.1498]
[1752182847760,0.002,116010.0,116000.0,0.1498]
[1752182848355,0.05371,116010.0,115990.0,0.1373]
[1752182848657,0.20611,116000.0,115980.0,0.01637284]
[1752182848850,0.05171,115990.0,115980.0,0.01637284]
[1752182849156,0.36431,115990.0,115980.0,0.01637284]
[1752182849362,0.36885,115990.0,115970.0,0.01637284]
[1752182849854,0.36885,115990.0,115970.0,0.16747284]
[1752182850057,0.20655,115990.0,115970.0,0.16747284]
[1752182850249,0.20611,115990.0,115970.0,0.30497284]
[1752182850455,0.04761,115980.0,115970.0,0.01637284]
[1752182850665,0.36751,115980.0,115970.0,0.01637284]
[1752182850852,0.36795,115980.0,115970.0,0.01637284]
[1752182851354,0.36795,115980.0,115960.0,0.00172466]
[1752182851355,0.32034,115980.0,115960.0,0.00172466]
[1752182851548,0.05171,115970.0,115960.0,0.00172466]
[1752182851751,0.04761,116000.0,115960.0,0.00172466]
[1752182852055,0.1571,116000.0,115980.0,0.33220662]
[1752182852257,0.04761,115990.0,115960.0,0.62565128]
[1752182852454,0.04761,115990.0,115970.0,0.1525]
[1752182852653,0.20631,115980.0,115960.0,0.47143128]
[1752182852965,0.04761,115970.0,115960.0,0.00232466]
[1752182853156,0.36751,115970.0,115960.0,0.00172466]
[1752182854958,0.33420662,116010.0,115960.0,0.00172466]
[1752182854959,0.04761,116000.0,115960.0,0.00172466]
[1752182855157,0.1476,116000.0,115970.0,0.33392662]
[1752182855358,0.04761,115990.0,115970.0,0.62570662]
[1752182855656,0.301,116000.0,115960.0,0.00172466]
[1752182855857,0.04761,115970.0,115960.0,0.00172466]
[1752182856261,0.1476,115980.0,115960.0,0.33393128]
[1752182856561,0.1517,115980.0,115960.0,0.00172466]
[1752182856759,0.20281,115970.0,115960.0,0.00172466]
[1752182856964,0.20691,115970.0,115960.0,0.00172466]
[1752182857962,0.20281,115970.0,115960.0,0.00172466]
[1752182858163,0.20691,115970.0,115960.0,0.00172466]
[1752182859158,0.20281,115970.0,115960.0,0.00172466]
[1752182859665,0.20691,115970.0,115960.0,0.00172466]
[1752182861561,0.04761,116000.0,115970.0,0.00172]
[1752182861766,0.05171,115990.0,115970.0,0.48070662]
[1752182861969,0.21351,115990.0,115970.0,0.14906]
[1752182862272,0.21351,115990.0,115960.0,0.13912466]
[1752182862273,0.04761,115970.0,115960.0,0.00172466]
[1752182862564,0.05171,115970.0,115960.0,0.00172466]
[1752182862765,0.20371,115970.0,115960.0,0.00172466]
[1752182862961,0.47532978,115970.0,115950.0,0.00172481]
[1752182863161,0.04761,115950.0,115920.0,0.00867372]
[1752182863362,0.05171,115930.0,115920.0,0.00867372]
[1752182863770,0.35141,115930.0,115920.0,0.00867372]
[1752182863965,0.35185,115930.0,115920.0,0.00867372]
[1752182865365,0.04761,115920.0,115880.0,0.00172585]
[1752182865664,0.04761,115930.0,115900.0,0.33220662]
[1752182865856,0.05171,115920.0,115900.0,0.33220662]
[1752182866062,0.20501,115920.0,115900.0,0.48760662]
[1752182866259,0.04761,115930.0,115900.0,0.50201662]
[1752182866460,0.04761,115930.0,115910.0,0.1375]
[1752182866659,0.20501,115930.0,115910.0,0.1554]
[1752182866857,0.20091,115930.0,115920.0,0.33220662]
[1752182867058,0.20501,115930.0,115920.0,0.33220662]
[1752182867464,0.04761,115960.0,115920.0,0.33220662]
[1752182867765,0.002,115930.0,115920.0,0.01385]
[1752182867965,0.002,115930.0,115920.0,0.48355662]
[1752182868162,0.002,115930.0,115920.0,0.65664462]
[1752182868669,0.002,115930.0,115920.0,0.00056]
[1752182868869,0.002,115930.0,115920.0,0.33220662]
[1752182869972,0.04961,115930.0,115900.0,0.01385]
[1752182870173,0.04961,115930.0,115910.0,0.33220662]
[1752182870377,0.002,115930.0,115910.0,0.34605662]
[1752182870577,0.002,115930.0,115920.0,0.47810662]
[1752182870780,0.002,115930.0,115920.0,0.47870662]
[1752182871171,0.05371,115930.0,115920.0,0.0006]
[1752182871367,0.05371,115930.0,115910.0,0.33220662]
[1752182871578,0.05371,115930.0,115900.0,0.01385]
[1752182871879,0.1601,115920.0,115910.0,0.33220662]
[1752182872278,0.002,115930.0,115910.0,0.33220662]
[1752182872577,0.002,115930.0,115920.0,0.01385]
[1752182872774,0.051,115930.0,115900.0,0.01385]
[1752182872973,0.049,115920.0,115910.0,0.33220662]
[1752182873276,0.0061,115930.0,115910.0,0.33220662]
[1752182873575,0.002,115930.0,115920.0,0.33220662]
[1752182873976,0.002,115930.0,115920.0,0.65063462]
[1752182874276,0.002,115930.0,115920.0,0.65123462]
[1752182874472,0.1621,115930.0,115920.0,0.65123462]
[1752182874672,0.2111,115930.0,115920.0,0.0006]
[1752182874976,0.3214,115930.0,115890.0,0.49195662]
[1752182875176,0.049,115900.0,115890.0,0.00056]
[1752182875377,0.0531,115910.0,115880.0,0.35815339]
[1752182875676,0.3173,115930.0,115900.0,0.33220662]
[1752182875975,0.049,115910.0,115880.0,0.02594677]
[1752182876180,0.2096,115900.0,115880.0,0.35815339]
[1752182876379,0.1606,115900.0,115880.0,0.34486339]
[1752182876677,0.3199,115900.0,115880.0,0.33393247]
[1752182876876,0.00044,115900.0,115890.0,0.01385]
[1752182877076,0.2096,115920.0,115890.0,0.49195662]
[1752182877379,0.1647,115920.0,115890.0,0.49251662]
[1752182877577,0.049,115900.0,115890.0,0.00056]
[1752182877882,0.0531,115900.0,115880.0,0.00172585]
[1752182878068,0.2092,115890.0,115880.0,0.00172585]
[1752182878781,0.049,115910.0,115880.0,0.52036647]
[1752182878971,0.049,115910.0,115880.0,0.16195585]
[1752182879168,0.0531,115910.0,115880.0,0.49368247]
[1752182879369,0.051,115930.0,115900.0,0.01385]
[1752182879570,0.049,115920.0,115900.0,0.33220662]
[1752182880283,0.0531,115920.0,115880.0,0.47983247]
[1752182880473,0.049,115920.0,115880.0,0.00216585]
[1752182880674,0.049,115890.0,115880.0,0.00172585]
[1752182880869,0.0041,115890.0,115880.0,0.00172585]
[1752182881074,0.0531,115890.0,115880.0,0.00172585]
[1752182881576,0.049,115890.0,115880.0,0.00172585]
[1752182881981,0.1599,115900.0,115880.0,0.00172585]
[1752182882281,0.0531,115890.0,115880.0,0.00172585]
[1752182882478,0.002,115930.0,115880.0,0.01557585]
[1752182882681,0.0531,115910.0,115880.0,0.00172585]
[1752182882881,0.213,115900.0,115880.0,0.14812585]
[1752182883081,0.049,115890.0,115880.0,0.00172585]
[1752182883279,0.2089,115890.0,115880.0,0.00172585]
[1752182883578,0.2089,115890.0,115880.0,0.33393247]
[1752182883782,0.049,115900.0,115880.0,0.48033247]
[1752182883983,0.0531,115900.0,115880.0,0.48077247]
[1752182884173,0.0041,115900.0,115880.0,0.33437247]
[1752182884376,0.2135,115890.0,115880.0,0.00172585]
[1752182884677,0.2176,115890.0,115880.0,0.00172585]
[1752182887386,0.2176,115890.0,115850.0,0.3284609]
[1752182887387,0.35734815,115870.0,115850.0,0.3284609]
[1752182887584,0.3608,115860.0,115850.0,0.3284609]
[1752182887783,0.36128001,115860.0,115850.0,0.3284609]
[1752182887983,0.36128001,115860.0,115850.0,0.5010929]
[1752182888287,0.3608,115880.0,115850.0,0.65244196]
[1752182888489,0.3608,115870.0,115850.0,0.4887469]
[1752182888676,0.00056001,115870.0,115850.0,0.4887469]
[1752182888880,0.3608,115880.0,115860.0,0.31751663]
[1752182889076,0.36124,115880.0,115870.0,0.61391663]
[1752182889277,0.00044,115880.0,115870.0,0.61447663]
[1752182889586,0.4098,115880.0,115870.0,0.46807663]
[1752182889884,0.57246001,115880.0,115870.0,0.46807663]
[1752182890185,0.57246001,115880.0,115870.0,0.31807663]
[1752182890381,0.57246001,115880.0,115870.0,0.31751663]
[1752182890577,0.52346001,115880.0,115870.0,0.31751663]
[1752182890880,0.52346001,115880.0,115870.0,0.79651663]
[1752182890881,0.36136001,115880.0,115870.0,0.79651663]
[1752182891079,0.36136001,115880.0,115870.0,0.79707663]
[1752182891280,0.0701985,115920.0,115880.0,0.001]
[1752182891281,0.3608,115920.0,115880.0,0.001]
[1752182891479,0.36124,115920.0,115910.0,0.31751663]
[1752182891675,0.36124,115920.0,115900.0,0.42981748]
[1752182891879,0.36124,115920.0,115910.0,0.31751663]
[1752182892382,0.36124,115920.0,115910.0,0.74006063]
[1752182892582,0.34684135,115940.0,115920.0,0.001]
[1752182892781,0.34684135,115940.0,115930.0,0.31751663]